Cogmind - Beta 13 @@@ ROGUE MODE // 2024.04.12 @ 17:06:20 Player: monkeman Result: Destroyed by Autobeam Turret with Autobeam Performance ------------- Evolutions (0) 0 Regions Visited (2) 400 Robots Destroyed (24) 120 Value Destroyed (680) 680 Prototype IDs (2) 40 Alien Tech Used (0) 0 Bonus (0) 0 TOTAL SCORE: 1240 Bonus ------- None Cogmind --------- Core Integrity 0/250 Matter 256/300 Energy 264/265 System Corruption 0% Temperature Cool (26) Movement Walking (330) Ox3 Location -10/Subcaves Parts ------- > --- POWER (1) -------- Improved Ion Engine > --- PROPULSION (2) --- Light Treads Aluminum Leg > --- UTILITY (2) ------ Large Storage Unit Targeting Computer > --- WEAPON (2) ------- Particle Cannon Light Cannon > --- INVENTORY (15) --- Subdweller Power Source Subdweller Monowheel Heat Sink Improved Heat Sink Structural Scanner Sensor Array Terrain Scanner ECM Suite Particle Gun Particle Cannon Particle Cannon Grenade Launcher Mining Laser Peak State ------------ > --- POWER ------------ Improved Ion Engine > --- PROPULSION ------- Light Treads Light Treads > --- UTILITY ---------- Large Storage Unit Targeting Computer > --- WEAPON ----------- Particle Cannon Assault Rifle > --- INVENTORY -------- Aluminum Leg Compact Wheel Heat Sink Improved Heat Sink Small Storage Unit Structural Scanner Sensor Array Targeting Computer Particle Gun Spread Laser Particle Cannon Particle Cannon Light Cannon Grenade Launcher [Rating: 11] Favorites ----------- Power Improved Ion Engine Engine Improved Ion Engine Propulsion Light Treads Treads Light Treads Leg Aluminum Leg Utility Targeting Computer Storage Large Storage Unit Processor Targeting Computer Weapon Assault Rifle Energy Cannon Particle Cannon Ballistic Gun Assault Rifle Ballistic Cannon Light Cannon Build | -11 -10 -10 ------- Run | Yrd Mat Sub Slots Evolved . | . . . Power . | . . . Propulsion . | . . . Utility . | . . . Weapon . | . . . Parts Attached 18 | 6 9 3 Power 3 | 1 2 . Engine 3 | 1 2 . Core . | . . . Reactor . | . . . Propulsion 5 | 2 2 1 Treads 2 | . 2 . Leg 3 | 2 . 1 Wheel . | . . . Hover . | . . . Flight . | . . . Utility 4 | 1 2 1 Device . | . . . Storage 2 | 1 1 . Processor 2 | . 1 1 Hackware . | . . . Protection . | . . . Artifact . | . . . Weapon 6 | 2 3 1 Energy Gun . | . . . Energy Cannon 2 | . 2 . Ballistic Gun 3 | 2 1 . Ballistic Cannon 1 | . . 1 Launcher . | . . . Special Weapon . | . . . Impact Weapon . | . . . Slashing Weapon . | . . . Piercing Weapon . | . . . Special Melee Weapon . | . . . Unidentified Prototypes . | . . . Parts Lost 8 | . 5 3 Power 1 | . 1 . Propulsion 3 | . 2 1 Utility 1 | . . 1 Weapon 3 | . 2 1 Highest Loss Streak 5 | . 5 2 To Critical Strikes . | . . . Average Slot Usage (%) 98 | . 98 99 Engine 13 | . 13 14 Treads 23 | . 22 28 Leg 4 | . 5 . Storage 14 | . 14 14 Processor 12 | . 12 13 Energy Cannon 11 | . 11 14 Ballistic Gun 16 | . 16 12 Naked Turns . | . . . Heaviest Build 34 | 14 33 34 Greatest Support 40 | 20 40 40 Greatest Overweight (x) 4 | 4 1 . Average Overweight (x) . | . . . Largest Inventory Capacity 15 | 8 15 15 Average Capacity 12 | 7 12 15 Most Carried 15 | 5 15 15 Average Carried 10 | 1 9 14 Final Capacity 15 | 8 15 15 Final Carried 15 | 5 15 13 Class Distribution -------------------- 100% | Mutant Dominant Class ---------------- Mutant | -10/Materials Mutant | -10/Subcaves Resources | -11 -10 -10 ----------- Run | Yrd Mat Sub Matter Collected 655 | 260 370 25 Remotely . | . . . Salvage Created 819 | . 731 88 Parts 51 | . 43 8 Haulers Intercepted 2 | . 2 . Recyclers Shooed . | . . . Parts Field Recycled . | . . . Retrieved Matter . | . . . Parts Self-Destructed 9 | . . 9 Prevented . | . . . Kills | -11 -10 -10 ------- Run | Yrd Mat Sub Combat Hostiles Destroyed 16 | . 13 3 Guns 6 | . 6 . Cannons 9 | . 6 3 AOE 1 | . 1 . Classes Destroyed 7 | . 5 2 Builder 1 | . 1 . Hauler 2 | . 2 . Operator 2 | . 2 . Watcher 3 | . 3 . Swarmer 1 | . . 1 Grunt 13 | . 13 . Subdweller 2 | . . 2 Best Kill Streak 3 | . 3 1 Combat Bots Only 3 | . 3 1 Max Kills in Single Turn 1 | . 1 1 Gunslinging . | . . . Exploded 1 | . 1 . Melee . | . . . Uniques/NPCs Destroyed . | . . . Combat | -11 -10 -10 -------- Run | Yrd Mat Sub Hostile Shots Fired 133 | . 69 64 Missed 41 | . 16 25 Damage Taken 1199 | . 869 330 Core 253 | . 169 84 Absorbed by Shields . | . . . Core Remaining (%) 100 | 100 . . Volleys Fired 84 | . 71 13 Largest 2 | . 2 2 Hottest 103 | . 88 103 Shots Fired 164 | . 138 26 Gun 112 | . 106 6 Cannon 52 | . 32 20 Launcher . | . . . Special . | . . . Kinetic 119 | . 106 13 Thermal 45 | . 32 13 Explosive . | . . . Electromagnetic . | . . . Robot Hit Streak 9 | . 9 5 Robot Miss Streak 6 | . 6 2 Penetration Max . | . . . Secondary Targets 1 | . 1 . Max Gunslinging Chain 1 | . 1 . Shots Hit Robots 107 | . 90 17 Core Hits 40 | . 34 6 Critical Kills . | . . . Critical Parts Destroyed . | . . . Critical Strikes . | . . . Melee Attacks . | . . . Impact . | . . . Slashing . | . . . Piercing . | . . . Sneak Attacks . | . . . Combat Hostiles . | . . . Follow-up Attacks . | . . . Damage Inflicted 1659 | . 1348 311 Guns 990 | . 938 52 Cannons 654 | . 395 259 Explosions . | . . . Melee . | . . . Ramming 15 | . 15 . Kinetic 1057 | . 938 119 Thermal 587 | . 395 192 Explosive . | . . . Electromagnetic . | . . . Impact . | . . . Slashing . | . . . Piercing . | . . . Highest Corruption . | . . . Average Corruption . | . . . Corruption Purged . | . . . Corruption Blocked . | . . . Overload Shots . | . . . Overflow Damage . | . . . Projectiles . | . . . Explosions . | . . . Melee . | . . . Knockbacks 1 | . . 1 Impact . | . . . Kinetic 1 | . . 1 Secondary . | . . . Self-Inflicted Damage . | . . . Shots . | . . . Rammed 2 | . 2 . Targets Rammed 2 | . 2 . Kicked . | . . . Crushed . | . . . Highest Temperature 318 | . 318 51 Average Temperature 75 | . 80 35 Received Heat Transfer 543 | . 351 192 Effects 2 | . 2 . Interference 2 | . 2 . Siege Activations . | . . . Robots Corrupted . | . . . Combat Hostiles . | . . . Parts Fried . | . . . Impact Corruptions . | . . . Robots Melted . | . . . Combat Hostiles . | . . . Parts Melted 2 | . 2 . Heat Transferred 1036 | . 703 333 Parts Sabotaged . | . . . Parts Stolen . | . . . Parts Stripped . | . . . Power Chain Reactions . | . . . Alert | -11 -10 -10 ------- Run | Yrd Mat Sub Peak Influence 199 | . 199 . Initial . | . . . Average 60 | . 63 . Maximum Alert Level . | . . . Low Security (%) 100 | 100 100 . Level 1 . | . . . Level 2 . | . . . Level 3 . | . . . Level 4 . | . . . Level 5 . | . . . High Security . | . . . Max Security . | . . . Squads Dispatched 4 | . 4 . Investigation 1 | . 1 . Extermination . | . . . Reinforcement 3 | . 3 . Assault . | . . . Garrison . | . . . Intercept . | . . . Searches Triggered . | . . . Construction Impeded . | . . . Haulers Reinforced . | . . . Active Scanning Responses . | . . . Cargo Convoy Interrupts . | . . . Stealth | -11 -10 -10 --------- Run | Yrd Mat Sub Distress Signals 1 | . 1 . Communications Jammed . | . . . Distress Signals . | . . . Times Spotted 60 | . 25 35 Peak Tracking Total 3 | . 3 3 Tactical Retreats 3 | . . 3 Traps | -11 -10 -10 ------- Run | Yrd Mat Sub Traps Triggered 2 | . 2 . Indirectly . | . . . Trap Hack Attempts . | . . . Triggered . | . . . Disarmed . | . . . Reprogrammed . | . . . Reused . | . . . Traps Extracted . | . . . Installed . | . . . Triggered . | . . . Machines | -11 -10 -10 ---------- Run | Yrd Mat Sub Machines Disabled 4 | . 2 2 Max in Single Turn 1 | . 1 1 Machines Repaired . | . . . Machines Dismantled . | . . . Machines Sabotaged . | . . . Overloaded Fab Kills . | . . . Hacking | -11 -10 -10 --------- Run | Yrd Mat Sub Machines Accessed 5 | . 4 1 Terminals 4 | . 4 . Fabricators . | . . . Repair Stations . | . . . Recycling Units . | . . . Scanalyzers . | . . . Garrison Access . | . . . Total Hacks 20 | . 17 3 Successful 10 | . 7 3 Failed 10 | . 10 . Catastrophic . | . . . Database Lockouts . | . . . Manual 7 | . 6 1 Terminals 17 | . 17 . Fabricators . | . . . Repair Stations . | . . . Recycling Units . | . . . Scanalyzers . | . . . Garrison Access . | . . . Terminal Hacks 9 | . 6 3 Record 3 | . . 3 Part Schematic 1 | . 1 . Robot Analysis 3 | . 3 . Prototype ID Bank 1 | . 1 . Locate Traps 1 | . 1 . Fabricator Hacks . | . . . Repair Station Hacks . | . . . Recycling Unit Hacks . | . . . Scanalyzer . | . . . Garrison Access Hacks . | . . . Unauthorized Hacks 1 | . 1 . Terminals 1 | . 1 . Botnet 1 | . 1 . Fabricators . | . . . Repair Stations . | . . . Recycling Units . | . . . Scanalyzers . | . . . Garrison Access . | . . . Data Cores Recovered . | . . . Used . | . . . Hacking Detections 3 | . 3 . Full Trace Events . | . . . Feedback Events . | . . . Feedback Blocked . | . . . Robot Schematics Acquired . | . . . Robots Built . | . . . Authchips . | . . . Time . | . . . Total Robot Build Rating . | . . . Part Schematics Acquired 1 | . 1 . Parts Built . | . . . Authchips . | . . . Time . | . . . Total Part Build Rating . | . . . Parts Repaired . | . . . Time . | . . . Parts Recycled . | . . . Recycled Matter . | . . . Retrieved Matter . | . . . Retrieved Components . | . . . Parts Scanalyzed . | . . . Part Schematics Acquired . | . . . Parts Damaged . | . . . Bothacking | -11 -10 -10 ------------ Run | Yrd Mat Sub Used RIF Installer . | . . . Robots Hacked . | . . . Non-combat . | . . . Combat . | . . . Robot Hacks Applied . | . . . Relay Couplers Released . | . . . Fabnet Peak Effective % . | . . . Robots Rewired . | . . . Allies Hacked . | . . . Hacks Repelled . | . . . Allies | -11 -10 -10 -------- Run | Yrd Mat Sub Total Allies . | . . . Largest Group . | . . . Highest-Rated Group . | . . . Highest-Rated Ally . | . . . Total Orders . | . . . Ally Attacks . | . . . Total Damage . | . . . Kills . | . . . Allies Corrupted . | . . . Allies Melted . | . . . Intel | -11 -10 -10 ------- Run | Yrd Mat Sub Robot Analysis Total 3 | . 3 . Derelict Logs Recovered . | . . . Drone Launches . | . . . Drone Recoveries . | . . . Exploration | -11 -10 -10 ------------- Run | Yrd Mat Sub Turns Passed 1808 | 68 1488 252 Spaces Moved 970 | 42 802 126 Core 16 | 12 4 . Treads 773 | . 647 126 Legs 181 | 30 151 . Wheels . | . . . Hover . | . . . Flight . | . . . Fastest Speed 50 | 50 100 160 Average Speed 152 | 130 152 160 Slowest Speed 250 | 250 160 160 Overloaded Moves . | . . . Propulsion Burnouts . | . . . Robots Hopped . | . . . Cave-ins Triggered . | . . . Exploration Rate (%) 38 | 4 98 12 Regions Visited 2 Branch Regions 1 Pre-discovered Areas . | . . . Known Exits Taken . | . . . Unknown Exits Taken 2 | 1 1 . Scrap Searched . | . . . Spaces Dug . | . . . Terrain Destroyed . | . . . Melee . | . . . Projectile . | . . . AOE . | . . . Terrain Rammed . | . . . Walls Destroyed . | . . . Machines Disabled . | . . . Actions | -11 -10 -10 --------- Run | Yrd Mat Sub Total 1135 | 52 932 151 Wait 30 | . 24 6 Move 968 | 41 801 126 Hop . | . . . Pick Up 26 | 5 19 2 Fast Attach 7 | 6 1 . Attach 8 | . 5 3 Detach . | . . . Swap 3 | . 3 . Drop 7 | . 6 1 Fire 84 | . 71 13 Melee . | . . . Ram . | . . . Kick . | . . . Crush 2 | . 2 . Escape Stasis . | . . . Rewire . | . . . Trap . | . . . Miscellaneous . | . . . Route ------- -11/Scrapyard -10/Materials (discovered 6 exits: [*Mat x3] / [*Min x2] / *Sub) -10/Subcaves (discovered 1 exit: [*Rec]) History --------- Turn | Location | Event 25 | -11/Scrapyard | Discovered new exit (range 16) 69 | -11/Scrapyard | Entered Materials 311 | -10/Materials | Build established: Mutant 369 | -10/Materials | Core integrity fell below 50% 399 | -10/Materials | Lost 5 parts (1p2n2w) 493 | -10/Materials | Discovered new exit (range 8) 639 | -10/Materials | Discovered new exit (range 4) 887 | -10/Materials | Discovered new exit (range 4) 1280 | -10/Materials | Discovered new exit (range 16) 1508 | -10/Materials | Discovered new exit (range 11) 1546 | -10/Materials | Discovered new exit (range 6) 1557 | -10/Materials | Entered Subcaves 1644 | -10/Subcaves | Visited Clippyterm 1782 | -10/Subcaves | Core integrity fell below 20% 1789 | -10/Subcaves | Discovered new exit (range 13) 1809 | -10/Subcaves | Destroyed by Autobeam Turret with Autobeam Last Messages --------------- have to kill you. 01712_ OW-AT3(R) destroyed. 01717_ Acquired 11 matter. 01752_ Subatomizers dissect the Sub. Laser. 01754_ Targeting Computer destroyed. 01755_ 9X-1DN(R) destroyed. 01761_ Acquired 4 matter. 01764_ Acquired 10 matter. 01765_ Acquired Sub. Monowheel. 01766_ Dropped Com. Wheel. 01768_ Acquired Sub. Power Source. 01777_ Subatomizers dissect the Sub. Monowheel. 01785_ Assault Rifle destroyed. 01786_ S-10 Pest destroyed. 01789_ EXIT=FOUND 01791_ Machine disabled. 01800_ Lgt. Assault Rifle fries itself beyond repair. 01800_ Destroyed Autobeam. 01805_ Lgt. Treads destroyed. Map ----- +----------------------------------------------------+ | ?????????????????????????????????????????????????? | | ?????????????????????????????????????????????????? | | ?????????????????????????????????????????????????? | | ?????????????????????????????????????????????????? | | ????????????????????????????####??????????######?? | | ???????????????????????????## ###???????# ##? | | ??????????????????????????## #?####???# ## | | ????????????????????????### ? ## ##???# | | ???????????????????????## # #??## | | ???????????????????????# ? ## #### | | ???????????????????????# ?# ## ## | | ?????????????????????##?# ## #?# | | ???????????????????### ## #?# ### | | ???????????????????# ### ##?## | | ???????????????????" ## #???? | | ?????????????????? #???? | | ???????????????????# ## ##### &! #???? | | ??????????????????????## ?#### &%& ##?#?? | | ????????????????????????# ## ###* ##?## # | | ?????????????????????????#%= ##?## #### | | ?????????????????????????#& #???### | | ?????????????????????????# #?????# | | ?????????????????????????# ##?????# | | ?????????????????????????# ##??????## ### | | ?????????????#" ###### ##????????###?# | | ?????????????#"t % % @% #?????????????# # | | ????????????#< ! [&= ????????? ### | | ?????????????#"%t %%%* #???????#?? | | ?????????????#"% ###### ! ## #######?????????# | | ?????????????# ??????#* #?###???????????????# | | ?????????????#"""????????# ##???????????????????? | | ?????????????????????????# #????????????????????? | | ????????????????????????? ????????????????????? | | ????????????????????????? ????????????????????? | | ???????????????????????? ???????????????????? | | ???????????????????????? ???????????????????? | | ????????????????????????# ???????????????????? | | ????????????????????????# #??????????????????? | | ????????????????????????#### #??????????????????? | | ???????????????????????????? ???????????????????? | | ?????????????????????????????????????????????????? | | ?????????????????????????????????????????????????? | | ?????????????????????????????????????????????????? | | ?????????????????????????????????????????????????? | | ?????????????????????????????????????????????????? | | ?????????????????????????????????????????????????? | | ?????????????????????????????????????????????????? | | ?????????????????????????????????????????????????? | | ?????????????????????????????????????????????????? | | ?????????????????????????????????????????????????? | +----------------------------------------------------+ Best States ------------- Heat Dissipation 25 Energy Generation 12 Energy Capacity 265 Matter Stores 300 Matter Capacity 300 Sight Range 16 Terrain Scan Density 10 Evasion (%) 55 Targeting Accuracy 5 Recoil Reduction 2 Item Schematics ----------------- Huge Storage Unit | -10/Materials | Hacked Robot Schematics ------------------ None Fabricated ------------ Nothing Alien Tech Used ----------------- None Achievements -------------- None Challenges ------------ None Game ------ Seed CouplerCooledPropulsion Manual? 0 Play Time 00:15:26 Cumulative 26.4 hours Start 2024.04.12 @ 16:52:28 End 2024.04.12 @ 17:06:20 Sessions 1 Manual Loads 0 Difficulty Rogue Special Mode None Game No. 31 Rogue 31 Adventurer 0 Explorer 0 Win Type - Total 1 Types 1/0/0/0/0/0/0/0/0 Lore% 16 Gallery% 31 Achievement% 25 Wizard Run 0 Options --------- Layout 1 ASCII 0 Keyboard 0 Movement Mouse Keybinds 0 Fullscreen 1 Font 24/Smallcaps Map View 50x35 Zoom Use 0% Tactical HUD 1 Map Filters NONE Filters NONE Steam 1 RUN: 8e2a0c81-41f0-454f-9301-e60e91f46273